bitfinex/quotes_BTCUSD_20240607
["timestamp","ask_amount","ask_price","bid_price","bid_amount"]
[1717783265288,0.66972807,69615.0,69614.0,0.0062123]
[1717783265500,0.15441893,69615.0,69614.0,0.0062123]
[1717783265714,0.14441893,69615.0,69614.0,0.0847123]
[1717783265924,0.39441893,69615.0,69614.0,0.67811414]
[1717783266144,0.39441893,69615.0,69614.0,0.6878728]
[1717783266356,0.39441893,69615.0,69614.0,0.6778728]
[1717783266561,0.39441893,69615.0,69614.0,0.74570101]
[1717783266562,0.42882451,69615.0,69614.0,0.74570101]
[1717783266798,0.42882451,69615.0,69614.0,0.69946269]
[1717783266799,1.40424729,69615.0,69614.0,0.69946269]
[1717783267004,0.63526877,69615.0,69614.0,0.0062123]
[1717783267222,1.46423818,69615.0,69614.0,0.0062123]
[1717783267433,1.46423818,69615.0,69600.0,3.05586285]
[1717783267434,0.09975866,69601.0,69600.0,3.05586285]
[1717783267643,0.88972807,69601.0,69600.0,2.95925809]
[1717783267852,1.88408522,69601.0,69600.0,2.95925809]
[1717783268063,1.47281227,69601.0,69600.0,0.00925809]
[1717783268277,2.05736275,69601.0,69600.0,0.00925809]
[1717783268514,1.8242526,69601.0,69600.0,0.00925809]
[1717783268726,2.31385802,69601.0,69600.0,0.00925809]
[1717783268968,2.75691628,69601.0,69600.0,0.00055187]
[1717783269235,2.75691628,69601.0,69596.0,0.47088736]
[1717783269236,0.08423505,69597.0,69596.0,0.47088736]
[1717783269506,0.90001414,69597.0,69596.0,0.47088736]
[1717783269753,1.87698599,69597.0,69596.0,0.3143762]
[1717783269953,1.87698599,69597.0,69594.0,0.0002]
[1717783269954,0.48011658,69595.0,69594.0,0.0002]
[1717783270172,0.08104473,69566.0,69562.0,0.43336945]
[1717783270396,0.01069556,69577.0,69562.0,0.43336945]
[1717783270397,0.07222824,69564.0,69563.0,0.67191437]
[1717783270565,1.37094093,69565.0,69563.0,0.67191437]
[1717783270810,1.37094093,69565.0,69563.0,0.22821582]
[1717783270811,0.79217772,69564.0,69563.0,0.22821582]
[1717783271036,0.76084094,69564.0,69563.0,0.60151146]
[1717783271241,1.61123888,69564.0,69563.0,0.96723634]
[1717783271451,1.42125566,69564.0,69563.0,0.96459894]
[1717783271622,1.42125566,69564.0,69529.0,0.01895527]
[1717783271623,0.1614,69551.0,69547.0,0.35339809]
[1717783271826,0.77222824,69548.0,69547.0,0.24034164]
[1717783272069,1.84277872,69548.0,69547.0,0.21962467]
[1717783272286,2.34475057,69548.0,69547.0,0.20298001]
[1717783272504,2.34475057,69548.0,69527.0,0.08146054]
[1717783272505,0.20627629,69537.0,69536.0,0.21402]
[1717783272712,0.01069556,69521.0,69506.0,0.41995677]
[1717783272929,0.07222824,69516.0,69498.0,0.46589817]
[1717783273138,0.07222824,69509.0,69498.0,0.07223771]
[1717783273348,0.3029,69508.0,69492.0,0.02162141]
[1717783273553,0.31359556,69508.0,69493.0,0.14947896]
[1717783273788,0.17837629,69512.0,69493.0,0.00864]
[1717783273789,0.2588645,69507.0,69493.0,0.00864]
[1717783274022,0.81429045,69520.0,69493.0,0.00864]
[1717783274023,0.09289725,69534.0,69507.0,0.0832]
[1717783274367,0.2,69578.0,69509.0,0.0755]
[1717783274368,0.1,69575.0,69509.0,0.0755]
[1717783274376,0.4,69552.0,69532.0,0.1]
[1717783274619,0.4,69552.0,69542.0,0.1]
[1717783274962,0.4,69552.0,69532.0,0.02]
[1717783274963,0.59,69552.0,69551.0,0.21932184]
[1717783275171,0.59,69552.0,69551.0,0.23550955]
[1717783275373,0.54441893,69552.0,69551.0,0.22]
[1717783275603,0.54441893,69552.0,69519.0,0.02113653]
[1717783275604,0.72790184,69552.0,69532.0,0.2]
[1717783275798,0.72790184,69552.0,69503.0,0.02113653]
[1717783275799,0.58455048,69552.0,69534.0,0.2]
[1717783275965,0.58455048,69552.0,69533.0,0.022]
[1717783275966,0.25,69552.0,69533.0,0.022]
[1717783276288,0.25,69552.0,69515.0,0.02]
[1717783276289,0.25,69552.0,69543.0,0.2]
[1717783276508,0.25,69552.0,69525.0,0.7]
[1717783276509,0.25,69552.0,69550.0,0.01550955]
[1717783276654,0.25,69552.0,69526.0,0.07222824]
[1717783276655,0.25,69552.0,69551.0,0.24550955]
[1717783276877,0.14441893,69552.0,69551.0,0.44168016]
[1717783277053,0.14441893,69552.0,69551.0,0.16338016]
[1717783277054,0.1437129,69552.0,69551.0,0.16338016]
[1717783277458,0.19,69566.0,69565.0,0.38168016]
[1717783277687,0.1,69593.0,69592.0,0.23968016]
[1717783277903,0.1,69593.0,69592.0,0.44528755]
[1717783278337,0.2,69597.0,69592.0,0.44528755]
[1717783278338,0.1,69597.0,69592.0,0.22443389]
[1717783278497,0.13415478,69601.0,69592.0,0.22443389]
[1717783278723,0.13415478,69601.0,69566.0,0.07222824]
[1717783278724,0.07222824,69680.0,69648.0,0.1]
[1717783278939,0.43336945,69695.0,69643.0,0.1]
[1717783278940,0.19,69644.0,69643.0,0.1]
[1717783279187,0.19,69644.0,69643.0,0.41675609]
[1717783279395,0.19,69644.0,69643.0,0.31627064]
[1717783279614,0.354229,69696.0,69672.0,0.09627064]
[1717783279615,0.19,69678.0,69672.0,0.09627064]
[1717783279828,0.04029856,69679.0,69672.0,0.09627064]
[1717783280044,0.4,69681.0,69665.0,0.2]
[1717783280045,0.04936146,69673.0,69665.0,0.2]
[1717783280284,0.0140925,69673.0,69672.0,0.22]
[1717783280482,0.04427165,69672.0,69667.0,0.09627064]
[1717783280687,0.0140925,69673.0,69667.0,0.09627064]
[1717783280894,0.0140925,69673.0,69668.0,0.07222824]
[1717783281101,0.4,69681.0,69673.0,0.0515893]
[1717783281306,0.143447,69713.0,69681.0,0.1608]
[1717783281514,0.43336945,69693.0,69681.0,0.1608]
[1717783281727,0.03635274,69692.0,69679.0,0.32751315]
[1717783281942,0.03635274,69692.0,69673.0,0.2]
[1717783281943,0.03635274,69692.0,69684.0,0.2]
[1717783282175,0.3,69695.0,69684.0,0.2]
[1717783282372,0.3,69695.0,69678.0,0.0515893]
[1717783282577,0.3029,69685.0,69673.0,0.2]
[1717783282777,0.3029,69685.0,69669.0,0.0515893]
[1717783282778,0.56452059,69684.0,69674.0,0.2]
[1717783283044,0.56452059,69684.0,69666.0,0.1]
[1717783283045,0.3029,69675.0,69666.0,0.1]
[1717783283264,0.40892675,69674.0,69642.0,0.0894343]
[1717783283458,0.40722225,69673.0,69651.0,0.2]
[1717783283683,0.40722225,69673.0,69620.0,8e-05]
[1717783283684,0.1,69631.0,69620.0,8e-05]
[1717783283879,0.1549,69661.0,69597.0,0.1517]
[1717783283880,0.04578525,69630.0,69597.0,0.1517]
[1717783284121,0.61555048,69629.0,69597.0,0.1517]
[1717783284285,0.43336945,69628.0,69597.0,0.1517]
[1717783284526,0.24128242,69627.0,69615.0,0.00145316]
[1717783284686,0.3029,69618.0,69615.0,0.00145316]
[1717783284889,0.3029,69618.0,69613.0,0.00145316]
[1717783284890,0.42443245,69617.0,69613.0,0.00145316]
[1717783285103,0.3029,69614.0,69608.0,0.00145316]
[1717783285298,0.84319603,69613.0,69600.0,0.00086]
[1717783285505,0.07222824,69609.0,69600.0,0.00231316]
[1717783285816,0.07222824,69609.0,69600.0,0.00086]
[1717783285817,0.61262824,69601.0,69600.0,0.00086]
[1717783285927,1.01364471,69601.0,69600.0,0.00086]
[1717783286144,1.01364471,69601.0,69558.0,0.00913845]
[1717783286145,0.143694,69593.0,69569.0,0.00913845]
[1717783286349,0.07222824,69570.0,69553.0,8e-05]
[1717783286517,0.07222824,69570.0,69539.0,8e-05]
[1717783286518,0.07222824,69558.0,69539.0,8e-05]
[1717783286719,0.07222824,69558.0,69526.0,0.0779]
[1717783286720,0.0475809,69548.0,69526.0,0.0779]
[1717783286945,0.64605048,69557.0,69531.0,0.14441893]
[1717783286946,0.42423209,69547.0,69531.0,0.14441893]
[1717783287149,0.143765,69558.0,69526.0,0.0779]
[1717783287150,0.143765,69558.0,69532.0,0.1599]
[1717783287319,0.43336945,69557.0,69544.0,0.16903845]
[1717783287519,0.1514,69567.0,69521.0,0.6885]
[1717783287520,0.07222824,69555.0,69554.0,0.0524191]
[1717783287806,1.04878801,69555.0,69553.0,0.0524191]
[1717783288024,1.04878801,69555.0,69551.0,0.00913845]
[1717783288025,0.323,69554.0,69517.0,0.0050162]
[1717783288235,0.323,69554.0,69533.0,0.43336945]
[1717783288445,0.59885048,69555.0,69534.0,0.0793]
[1717783288658,0.43336945,69550.0,69549.0,0.0524191]
[1717783288896,0.3,69550.0,69535.0,0.04282918]
[1717783289116,0.3,69550.0,69517.0,0.0049362]
[1717783289320,0.323,69562.0,69517.0,0.0049362]
[1717783289321,0.143748,69567.0,69537.0,0.00913845]
[1717783289580,0.07691617,69572.0,69564.0,0.04282918]
[1717783289792,0.64122824,69577.0,69538.0,0.1642]
[1717783289793,0.64122824,69577.0,69559.0,0.04282918]
[1717783290009,0.07222824,69565.0,69542.0,0.04282918]
[1717783290262,0.07222824,69556.0,69543.0,0.43336945]
[1717783290459,0.3,69560.0,69559.0,0.00913845]
[1717783290668,0.569,69560.0,69559.0,0.00913845]
[1717783290888,0.569,69560.0,69542.0,0.04282918]
[1717783290889,0.25,69543.0,69542.0,0.04282918]
[1717783291087,0.25,69543.0,69522.0,0.43336945]
[1717783291088,2.23705048,69543.0,69522.0,0.43336945]
[1717783291299,2.23705048,69543.0,69517.0,0.0049362]
[1717783291300,1.591,69543.0,69542.0,0.2]
[1717783291514,2.67585048,69543.0,69542.0,0.199676]
[1717783291919,2.49394548,69543.0,69542.0,0.12831731]
[1717783292129,0.0758,69534.0,69517.0,0.0049362]
[1717783292335,0.0758,69534.0,69496.0,4.179e-05]
[1717783292336,0.36046917,69531.0,69496.0,0.01566562]
[1717783292537,0.36046917,69531.0,69479.0,0.0202]
[1717783292538,0.07222824,69503.0,69492.0,0.15872717]
[1717783292754,0.88455048,69502.0,69492.0,0.09533327]
[1717783292962,0.10136447,69501.0,69479.0,0.0002]
[1717783293187,0.10136447,69501.0,69494.0,0.0082885]
[1717783293188,0.75814319,69501.0,69494.0,0.0082885]
[1717783293356,0.0798,69499.0,69494.0,0.0032885]
[1717783293633,0.0798,69499.0,69479.0,0.0002]
[1717783293634,1.12035909,69498.0,69479.0,0.0002]
[1717783293856,0.07222824,69481.0,69479.0,0.0002]
[1717783294065,0.07222824,69481.0,69422.0,0.57741445]
[1717783294066,0.07222824,69465.0,69422.0,0.57741445]
[1717783294266,8e-05,69463.0,69433.0,0.35]
[1717783294475,0.3,69466.0,69427.0,0.14928838]
[1717783294760,0.3,69466.0,69465.0,0.14441893]
[1717783295002,0.07222824,69474.0,69465.0,0.14406914]
[1717783295250,0.07222824,69466.0,69465.0,0.14406914]
[1717783295526,0.07222824,69466.0,69433.0,0.01484309]
[1717783295796,0.07222824,69466.0,69428.0,0.41742884]
[1717783295797,0.07222824,69461.0,69457.0,0.14441893]
[1717783295980,0.43336945,69466.0,69458.0,0.14441893]
[1717783296206,0.07222824,69460.0,69458.0,0.14441893]
[1717783296440,0.07222824,69460.0,69435.0,0.1538]
[1717783296661,0.07222824,69460.0,69446.0,0.14441893]
[1717783296875,0.07222824,69460.0,69436.0,0.05038]
[1717783296876,0.1,69462.0,69449.0,0.14441893]
[1717783297101,0.50559769,69450.0,69442.0,0.0817]
[1717783297306,0.07222824,69450.0,69442.0,0.0817]
[1717783297509,0.06722824,69450.0,69442.0,0.07691627]
[1717783297723,0.31555048,69456.0,69443.0,0.14018939]
[1717783297920,0.28093889,69449.0,69435.0,0.1538]
[1717783298125,0.1,69454.0,69436.0,0.14441893]
[1717783298331,0.07222824,69459.0,69437.0,0.06482189]
[1717783298332,0.1,69457.0,69437.0,0.06482189]
[1717783298591,0.43336945,69472.0,69438.0,0.14441893]
[1717783298592,0.1,69458.0,69438.0,0.14441893]
[1717783298801,0.00630294,69444.0,69442.0,0.14441893]
[1717783299017,0.43336945,69486.0,69446.0,0.1648]
[1717783299241,0.43336945,69512.0,69461.0,0.3029]
[1717783299439,0.43336945,69494.0,69480.0,0.1552]
[1717783299670,0.43336945,69493.0,69481.0,2.9002]
[1717783299876,0.12263414,69524.0,69486.0,0.7105]
[1717783299877,0.3,69505.0,69486.0,0.7105]
[1717783300099,0.21606524,69524.0,69487.0,0.15512058]
[1717783300322,0.2043,69531.0,69504.0,0.3229]
[1717783300522,0.83336945,69530.0,69519.0,0.01]
[1717783300732,0.07222824,69550.0,69520.0,1.6785]
[1717783300733,0.07222824,69543.0,69520.0,1.6785]
[1717783300987,0.07222824,69550.0,69520.0,1.6785]
[1717783300988,0.21664717,69542.0,69521.0,0.1]
[1717783301184,0.07222824,69542.0,69522.0,0.14511787]
[1717783301386,0.1196148,69565.0,69522.0,0.14511787]
[1717783301387,0.07222824,69565.0,69525.0,0.4186588]
[1717783301597,0.07222824,69565.0,69522.0,0.14511787]
[1717783301598,0.143756,69563.0,69531.0,0.3029]
[1717783301817,0.07222824,69565.0,69526.0,0.0792]
[1717783301818,0.07222824,69565.0,69526.0,2.7217]
[1717783302012,0.01047109,69591.0,69533.0,0.43336945]
[1717783302282,0.04738656,69590.0,69542.0,0.0824]
[1717783302488,0.08269933,69594.0,69562.0,0.3505]
[1717783302489,0.43336945,69584.0,69562.0,0.3505]
[1717783302725,0.07222824,69586.0,69562.0,0.3505]
[1717783302941,0.143697,69591.0,69562.0,0.3505]
[1717783303154,0.07222824,69594.0,69563.0,0.1611]
[1717783303356,0.14441893,69585.0,69563.0,0.1611]
[1717783303578,0.14441893,69585.0,69564.0,0.43336945]
[1717783303795,0.14441893,69585.0,69563.0,0.1611]
[1717783304174,0.04423877,69592.0,69564.0,0.14441893]
[1717783304416,0.07222824,69601.0,69565.0,0.14441893]
[1717783304638,0.00039189,69591.0,69566.0,0.06560189]
[1717783304853,0.00039189,69591.0,69567.0,0.14441893]
[1717783305065,0.03291389,69593.0,69567.0,0.14441893]
[1717783305278,0.03291389,69593.0,69568.0,0.418]
[1717783305491,0.03291389,69593.0,69569.0,0.18254973]
[1717783305707,0.14441893,69600.0,69569.0,0.18254973]
[1717783306134,0.1196148,69609.0,69571.0,0.14441893]
[1717783306135,0.04738656,69609.0,69571.0,0.14441893]
[1717783306351,0.07222824,69605.0,69577.0,0.14441893]
[1717783306579,0.48075601,69602.0,69578.0,0.14441893]
[1717783306787,0.04738656,69592.0,69579.0,0.9895]
[1717783306996,0.5695,69601.0,69580.0,0.14441893]
[1717783306997,0.07222824,69590.0,69580.0,0.14441893]
[1717783307200,0.07222824,69583.0,69568.0,0.76776865]
[1717783307614,0.07222824,69600.0,69569.0,0.14441893]
[1717783307615,0.50559769,69600.0,69569.0,0.14441893]
[1717783308028,0.50559769,69600.0,69575.0,0.14441893]
[1717783308237,0.07222824,69600.0,69576.0,0.15886082]
[1717783308615,0.143646,69616.0,69576.0,0.15886082]
[1717783308854,0.50573493,69620.0,69576.0,0.15886082]
[1717783308855,0.057511,69611.0,69578.0,0.14441893]
[1717783309059,0.057511,69611.0,69585.0,0.14441893]
[1717783309291,0.0475238,69620.0,69590.0,0.1574]
[1717783309493,0.43336945,69619.0,69591.0,0.27945082]
[1717783309702,0.07222824,69633.0,69591.0,0.27945082]
[1717783309871,0.43336945,69622.0,69598.0,0.02]
[1717783310094,0.5695,69637.0,69605.0,0.14441893]
[1717783310236,0.43336945,69619.0,69606.0,0.3385]
[1717783310458,0.5695,69618.0,69606.0,0.3385]
[1717783310768,0.44115128,69617.0,69606.0,0.3385]
[1717783310931,0.07222824,69610.0,69605.0,0.359]
[1717783311132,0.58455048,69616.0,69599.0,0.35]
[1717783311450,0.58455048,69616.0,69590.0,0.1674]
[1717783311451,0.07222824,69606.0,69600.0,0.14441893]
[1717783311676,0.07222824,69606.0,69582.0,0.0832]
[1717783311677,0.269,69605.0,69582.0,0.0832]
[1717783311847,0.269,69605.0,69583.0,0.33845426]
[1717783312056,0.07222824,69599.0,69583.0,0.33845426]
[1717783312642,0.07222824,69591.0,69583.0,0.33845426]
[1717783312887,0.07222824,69599.0,69579.0,0.359]
[1717783312888,0.37272824,69590.0,69579.0,0.359]
[1717783313084,0.07222824,69580.0,69553.0,0.143773]
[1717783313216,0.07222824,69580.0,69556.0,0.4181]
[1717783313435,0.07222824,69573.0,69556.0,0.4181]
[1717783313652,0.07222824,69566.0,69561.0,0.01]
[1717783313825,0.269,69565.0,69550.0,0.01]
[1717783314041,0.269,69565.0,69535.0,0.01]
[1717783314042,0.07222824,69551.0,69535.0,0.01]
[1717783314281,0.07222824,69551.0,69522.0,0.0815]
[1717783314282,0.07222824,69536.0,69522.0,8e-05]
[1717783314496,0.5695,69535.0,69512.0,8e-05]
[1717783314693,0.5695,69535.0,69506.0,0.0795]
[1717783314694,0.07222824,69534.0,69508.0,8e-05]
[1717783314933,0.5695,69535.0,69509.0,0.57778838]
[1717783315162,0.359,69564.0,69509.0,0.57778838]
[1717783315163,0.43336945,69560.0,69517.0,0.2485]
[1717783315376,0.43336945,69560.0,69519.0,8e-05]
[1717783315610,0.01048111,69575.0,69533.0,0.07222824]
[1717783315876,0.17222824,69590.0,69539.0,0.143802]
[1717783315877,0.269,69586.0,69539.0,0.143802]
[1717783316118,0.37272824,69590.0,69558.0,0.14441893]
[1717783316321,0.37272824,69590.0,69546.0,0.3505]
[1717783316322,0.37272824,69590.0,69560.0,0.14441893]
[1717783316949,0.43336945,69572.0,69560.0,0.14441893]
[1717783317159,0.269,69575.0,69560.0,0.14441893]
[1717783317375,0.2955,69582.0,69560.0,0.14441893]
[1717783317597,0.2955,69582.0,69562.0,0.14441893]
[1717783317833,0.0779,69602.0,69566.0,0.14441893]
[1717783318050,0.43336945,69596.0,69572.0,0.14441893]
[1717783318275,0.269,69599.0,69572.0,0.14441893]
[1717783318276,0.43336945,69598.0,69572.0,0.14441893]
[1717783318492,0.01048111,69613.0,69573.0,0.04394707]
[1717783318693,0.000946,69599.0,69577.0,0.07222824]
[1717783318898,0.000946,69599.0,69578.0,1.66707715]
[1717783319097,0.000946,69599.0,69579.0,0.01]
[1717783319458,0.000946,69599.0,69585.0,0.14441893]
[1717783319670,0.43336945,69615.0,69591.0,0.14441893]
[1717783319881,0.07222824,69640.0,69586.0,0.17004189]
[1717783319882,0.07222824,69640.0,69594.0,0.14441893]
[1717783320073,0.07222824,69640.0,69600.0,0.14441893]
[1717783320276,0.07222824,69640.0,69601.0,0.1564]
[1717783320484,0.07222824,69640.0,69604.0,0.12383388]
[1717783320685,0.07222824,69640.0,69602.0,0.00574434]
[1717783320686,0.057493,69638.0,69605.0,0.19967267]
[1717783320893,0.057493,69638.0,69606.0,0.28808393]
[1717783321097,0.057493,69638.0,69608.0,0.02]
[1717783321306,0.057493,69638.0,69609.0,0.15016315]
[1717783321307,0.076,69620.0,69609.0,0.15016315]
[1717783321512,0.07222824,69631.0,69609.0,0.15016315]
[1717783321513,0.298,69627.0,69609.0,0.15441893]
[1717783321715,0.07222824,69624.0,69601.0,0.01]
[1717783321926,0.07222824,69624.0,69600.0,0.01]
[1717783321927,0.07222824,69617.0,69600.0,0.00407514]
[1717783322147,0.07222824,69609.0,69602.0,0.14441893]
[1717783322364,0.07222824,69608.0,69590.0,0.1]
[1717783322569,0.07222824,69608.0,69591.0,0.14441893]
[1717783322570,0.07222824,69600.0,69591.0,0.14441893]
[1717783322779,0.07222824,69608.0,69593.0,0.14441893]
[1717783322780,0.2695,69605.0,69593.0,0.14441893]
[1717783322995,0.2695,69605.0,69588.0,1.01]
[1717783322996,0.07222824,69598.0,69588.0,1.01]
[1717783323192,0.07222824,69598.0,69588.0,1.0]
[1717783323396,0.07222824,69597.0,69588.0,1.0]
[1717783323610,0.07222824,69590.0,69588.0,1.0]
[1717783324244,0.10868197,69590.0,69588.0,1.0]
[1717783324452,0.07222824,69590.0,69588.0,1.0]
[1717783324678,0.37831893,69589.0,69588.0,1.0]
[1717783324911,0.37831893,69589.0,69555.0,0.43336945]
[1717783324912,1.0437014,69589.0,69555.0,0.43336945]
[1717783325152,0.07222824,69558.0,69555.0,0.43336945]
[1717783325368,0.07222824,69558.0,69525.0,0.1561]
[1717783325369,1.19057872,69558.0,69533.0,8e-05]
[1717783325587,1.37887591,69558.0,69533.0,8e-05]
[1717783325793,0.04527831,69557.0,69518.0,0.42930945]
[1717783326017,0.04527831,69557.0,69519.0,0.14441893]
[1717783326018,0.07222824,69534.0,69519.0,0.14441893]
[1717783326231,0.07222824,69534.0,69513.0,0.00865]
[1717783326232,0.07222824,69527.0,69513.0,0.00865]
[1717783326442,0.07222824,69520.0,69513.0,0.00865]
[1717783326657,0.93655048,69519.0,69513.0,0.00865]
[1717783326876,0.00719296,69518.0,69513.0,0.00865]
[1717783327293,0.1143,69533.0,69513.0,0.00865]
[1717783327294,0.15161306,69517.0,69513.0,0.16145]
[1717783327550,0.4,69546.0,69513.0,0.16145]
[1717783327551,0.01046525,69536.0,69513.0,0.16145]
[1717783327788,0.01046525,69537.0,69514.0,0.02975747]
[1717783327995,0.01046525,69547.0,69515.0,0.01]
[1717783328230,0.4,69569.0,69514.0,0.03975747]
[1717783328231,0.01046525,69545.0,69528.0,0.02]
[1717783328441,0.2337,69568.0,69525.0,0.07222824]
[1717783328442,0.2337,69568.0,69530.0,0.01]
[1717783328652,8e-05,69575.0,69529.0,0.25535122]
[1717783328653,0.2695,69575.0,69544.0,0.07222824]
[1717783328877,8e-05,69583.0,69545.0,0.00574991]
[1717783328878,0.07222824,69583.0,69545.0,0.00574991]
[1717783329212,0.07222824,69583.0,69549.0,0.14441893]
[1717783329425,0.07222824,69583.0,69551.0,0.1587]
[1717783329618,0.298,69586.0,69551.0,0.1587]
[1717783329619,0.298,69586.0,69553.0,0.0823]
[1717783329961,0.298,69586.0,69554.0,0.00574822]
[1717783330369,0.43336945,69581.0,69554.0,0.00574822]
[1717783330567,0.07230824,69597.0,69553.0,0.10714663]
[1717783330568,0.43336945,69578.0,69553.0,0.10714663]
[1717783330918,0.29808,69596.0,69558.0,0.43336945]
[1717783330919,0.2695,69577.0,69558.0,0.43336945]
[1717783331121,0.07222824,69575.0,69559.0,0.00574954]
[1717783331360,0.07222824,69585.0,69559.0,0.00574954]
[1717783331556,0.07222824,69585.0,69560.0,0.14441893]
[1717783331692,0.07222824,69585.0,69561.0,0.0207652]
[1717783331889,0.07222824,69585.0,69563.0,0.14441893]
[1717783332114,0.07222824,69585.0,69565.0,0.14441893]
[1717783332276,0.07222824,69585.0,69567.0,0.14441893]
[1717783332277,0.298,69584.0,69567.0,0.14441893]
[1717783332475,0.298,69584.0,69551.0,0.1587]
[1717783332476,0.07222824,69578.0,69551.0,0.1587]
[1717783332853,0.07222824,69571.0,69559.0,0.01]
[1717783332976,0.07222824,69578.0,69559.0,0.15016775]
[1717783333180,0.28451127,69607.0,69559.0,0.15016775]
[1717783333181,0.07222824,69598.0,69566.0,0.14441893]
[1717783333401,0.07222824,69598.0,69567.0,0.0057477]
[1717783333402,0.09434487,69597.0,69567.0,0.0057477]
[1717783333600,0.09434487,69597.0,69573.0,0.14441893]
[1717783333796,1.00086945,69601.0,69575.0,0.1603]
[1717783333797,0.43336945,69600.0,69575.0,0.1603]
[1717783334012,0.298,69601.0,69582.0,0.14301893]
[1717783334220,0.298,69601.0,69583.0,0.00574613]
[1717783334489,0.298,69601.0,69584.0,0.14441893]
[1717783334679,0.07222824,69600.0,69584.0,0.14305456]
[1717783335480,0.298,69601.0,69584.0,0.14305456]
[1717783335693,0.07222824,69600.0,69584.0,0.14305456]
[1717783335889,0.07222824,69600.0,69575.0,0.1603]
[1717783335890,0.07222824,69593.0,69575.0,0.1603]
[1717783336254,0.298,69601.0,69575.0,0.1603]
[1717783336255,0.298,69601.0,69583.0,0.14441893]
[1717783336643,0.298,69601.0,69576.0,0.07222824]
[1717783336644,0.2695,69613.0,69588.0,0.01]
[1717783336795,0.00951501,69616.0,69577.0,0.01415611]
[1717783336796,0.00951501,69616.0,69598.0,0.01]
[1717783337020,0.00951501,69616.0,69595.0,0.14441893]
[1717783337021,0.07222824,69632.0,69600.0,0.1581]
[1717783337230,0.07222824,69632.0,69606.0,0.01]
[1717783337412,0.07222824,69632.0,69601.0,0.02357]
[1717783337414,0.07222824,69632.0,69607.0,0.02]
[1717783337608,0.07222824,69632.0,69606.0,0.02]
[1717783337815,0.07222824,69632.0,69612.0,0.02]
[1717783338037,0.07222824,69632.0,69614.0,0.14441893]
[1717783338266,0.07222824,69632.0,69614.0,0.15886082]
[1717783338829,0.5675,69639.0,69615.0,0.14441893]
[1717783339035,0.05637071,69638.0,69615.0,0.14441893]
[1717783339238,0.05637071,69638.0,69616.0,0.14441893]
[1717783339443,0.31555048,69643.0,69621.0,0.07222824]
[1717783339671,0.09110484,69657.0,69623.0,0.0833]
[1717783339871,0.0188766,69657.0,69628.0,0.07222824]
[1717783340073,0.011,69651.0,69636.0,0.01]
[1717783340334,0.43336945,69666.0,69636.0,0.01]
[1717783340335,0.057469,69659.0,69644.0,0.02]
[1717783340523,0.43336945,69665.0,69637.0,0.1621]
[1717783340524,0.43336945,69665.0,69649.0,0.02]
[1717783340736,0.43336945,69665.0,69637.0,0.1621]
[1717783340737,0.43336945,69664.0,69656.0,0.14441893]
[1717783340955,0.009526,69669.0,69656.0,0.14441893]
[1717783340956,0.0143,69660.0,69656.0,0.14441893]
[1717783341281,0.009526,69669.0,69656.0,0.14441893]
[1717783341493,0.009526,69669.0,69639.0,0.0758]
[1717783341686,0.009526,69669.0,69645.0,0.14441893]
[1717783341933,0.009526,69669.0,69646.0,0.01444189]
[1717783342142,0.009526,69669.0,69646.0,0.02444189]
[1717783342355,0.009526,69669.0,69651.0,0.01]
[1717783342537,0.009526,69669.0,69665.0,0.14441893]
[1717783342699,0.155546,69692.0,69667.0,0.14441893]
[1717783342913,0.155546,69692.0,69666.0,0.1535]
[1717783342914,0.019052,69683.0,69675.0,0.14441893]
[1717783343117,0.019052,69683.0,69666.0,0.1535]
[1717783343439,0.07222824,69682.0,69667.0,0.14441893]
[1717783343662,0.019052,69683.0,69666.0,0.1535]
[1717783343663,0.009526,69683.0,69671.0,0.0833]
[1717783344185,0.05744,69697.0,69681.0,0.14441893]
[1717783344405,0.00951501,69708.0,69681.0,0.14441893]
[1717783344406,0.00951501,69708.0,69682.0,0.22442824]
[1717783344620,0.0787,69728.0,69692.0,0.02]
[1717783344738,0.43336945,69729.0,69690.0,0.07222824]
[1717783344935,0.43336945,69729.0,69697.0,0.07222824]
[1717783345138,0.43336945,69729.0,69692.0,0.02]
[1717783345359,0.07222824,69722.0,69704.0,0.14441893]
[1717783345567,0.07222824,69722.0,69691.0,0.1564]
[1717783345568,0.07222824,69713.0,69691.0,0.1564]
[1717783345775,0.07222824,69699.0,69684.0,0.43336945]
[1717783345976,0.07222824,69699.0,69685.0,0.14441893]
[1717783345977,0.07222824,69692.0,69685.0,0.14441893]
[1717783346190,0.07222824,69706.0,69685.0,0.14441893]
[1717783346400,0.07222824,69706.0,69682.0,0.1593]
[1717783346401,0.2696039,69712.0,69691.0,0.14441893]
[1717783346624,0.2696039,69712.0,69682.0,0.1593]
[1717783346625,0.07222824,69722.0,69699.0,0.14441893]
[1717783346826,0.07222824,69722.0,69701.0,0.14441893]
[1717783347028,0.2696039,69726.0,69701.0,0.14441893]
[1717783347235,0.2696039,69726.0,69704.0,0.14441893]
[1717783347483,0.07222824,69729.0,69704.0,0.14441893]
[1717783347690,0.07222824,69721.0,69704.0,0.14441893]
[1717783348047,0.07222824,69729.0,69704.0,0.14441893]
[1717783348248,0.07222824,69729.0,69706.0,0.14150246]
[1717783348249,0.07222824,69722.0,69706.0,0.14150246]
[1717783348447,0.07222824,69722.0,69702.0,0.01444189]
[1717783348653,0.01703072,69729.0,69706.0,0.57778838]
[1717783348905,0.02631212,69733.0,69708.0,0.07222824]
[1717783349178,0.0782,69755.0,69723.0,0.24]
[1717783349359,0.5730479,69763.0,69724.0,0.00573395]
[1717783349599,0.5730479,69763.0,69725.0,0.00573384]
[1717783349600,0.47565048,69763.0,69725.0,0.00573384]
[1717783349758,0.47565048,69763.0,69726.0,0.14441893]
[1717783349759,0.07222824,69751.0,69726.0,0.14441893]
[1717783349958,0.07122824,69751.0,69727.0,0.03901541]
[1717783350184,0.00951501,69753.0,69728.0,0.00573407]
[1717783350385,0.00951501,69753.0,69733.0,0.14441893]
[1717783350592,0.00951501,69753.0,69734.0,0.02017605]
[1717783350798,0.00951501,69753.0,69735.0,0.14441893]
[1717783351052,0.00951501,69753.0,69736.0,0.00573417]
[1717783351295,0.00951501,69753.0,69742.0,0.14441893]
[1717783351296,0.00730706,69753.0,69742.0,0.14441893]
[1717783351556,0.01,69797.0,69752.0,0.14441893]
[1717783351557,0.00840992,69762.0,69752.0,0.14441893]
[1717783351783,0.00840992,69762.0,69749.0,0.1507]